bitfinex/quotes_ETHUSD_20250319
["timestamp","ask_amount","ask_price","bid_price","bid_amount"]
[1742371825665,1e-05,1939.8,1939.7,15.7160259]
[1742371826667,1e-05,1939.8,1939.7,16.19690282]
[1742371827505,1e-05,1939.8,1939.7,20.7094875]
[1742371827704,1e-05,1939.8,1939.7,16.19690282]
[1742371828710,1e-05,1939.8,1939.7,17.2050292]
[1742371829018,1e-05,1939.8,1939.7,21.71761388]
[1742371829482,1e-05,1939.8,1939.7,22.10321678]
[1742371830259,0.7999,1940.7,1940.0,0.8277]
[1742371830459,0.7999,1940.7,1940.3,0.8277]
[1742371830688,0.8160853,1940.9,1940.3,1.21047]
[1742371830891,5.32866998,1940.9,1940.3,1.21047]
[1742371831266,0.8160853,1940.9,1940.4,3.0]
[1742371831578,0.0283853,1940.9,1940.6,3.0]
[1742371831784,0.0283853,1940.9,1940.7,0.8139]
[1742371832183,0.0283853,1940.9,1940.7,1.19529]
[1742371832383,0.0283853,1940.9,1940.8,7.51258468]
[1742371832567,0.0283853,1940.9,1940.8,9.13999]
[1742371832767,0.0283853,1940.9,1940.8,10.19089227]
[1742371836695,0.0283853,1940.9,1940.8,15.50827695]
[1742371836882,0.0283853,1940.9,1940.8,16.60320445]
[1742371837086,0.0283853,1940.9,1940.8,12.09061977]
[1742371839719,0.0283853,1940.9,1940.8,12.47027396]
[1742371841619,0.0283853,1940.9,1940.8,30.28527396]
[1742371843015,0.0283853,1940.9,1940.8,26.10081977]
[1742371843313,0.0283853,1940.9,1940.8,29.84589227]
[1742371844994,0.0283853,1940.9,1940.8,26.70590227]
[1742371849421,0.0283853,1940.9,1940.8,32.01488695]
[1742371849889,0.0283853,1940.9,1940.8,27.50230227]
[1742371850495,0.0283853,1940.9,1940.8,33.64229227]
[1742371850801,0.0283853,1940.9,1940.8,38.15487695]
[1742371851891,0.0283853,1940.9,1940.8,33.64229227]
[1742371853328,0.0283853,1940.9,1940.8,38.15487695]
[1742371853698,0.0283853,1940.9,1940.8,33.64229227]
[1742371854723,0.0283853,1940.9,1940.8,38.15487695]
[1742371857515,0.0283853,1940.9,1940.8,33.64229227]
[1742371858012,0.0283853,1940.9,1940.8,32.84589227]
[1742371859729,0.0283853,1940.9,1940.8,29.84089227]
[1742371860035,0.8258853,1940.9,1940.8,29.84089227]
[1742371860217,0.8258853,1940.9,1940.8,23.70090227]
[1742371860605,0.8258853,1940.9,1940.8,26.70090227]
[1742371861320,0.8258853,1940.9,1940.8,26.70190227]
[1742371865533,0.0283853,1940.9,1940.8,26.70190227]
[1742371867039,0.7876853,1940.9,1940.8,26.70190227]
[1742371868758,0.7876853,1940.9,1940.8,25.65]
[1742371868759,5.30026998,1940.9,1940.8,25.65]
[1742371870040,0.7876853,1940.9,1940.8,25.65]
[1742371872844,0.0283853,1940.9,1940.8,25.65]
[1742371878940,0.0283853,1940.9,1940.8,25.648]
[1742371879651,0.5613323,1940.9,1940.8,20.815]
[1742371879947,0.7919853,1940.9,1940.8,25.647]
[1742371880319,0.0283853,1940.9,1940.8,25.647]
[1742371881918,0.0283853,1940.9,1940.8,26.4503]
[1742371885750,0.0283853,1940.9,1940.8,32.59029]
[1742371892260,0.0283853,1940.9,1940.8,37.10287468]
[1742371893240,0.0283853,1940.9,1940.8,32.59029]
[1742371894423,0.0283853,1940.9,1940.8,31.78399]
[1742371895131,0.0283853,1940.9,1940.8,26.95499]
[1742371895351,0.0283853,1940.9,1940.8,31.78399]
[1742371895739,0.0283853,1940.9,1940.8,26.95499]
[1742371895941,0.0283853,1940.9,1940.8,31.78399]
[1742371898746,0.0283853,1940.9,1940.8,26.95499]
[1742371898945,0.0283853,1940.9,1940.8,31.78299]
[1742371899555,0.0283853,1940.9,1940.8,25.642]
[1742371899556,0.7854853,1940.9,1940.8,25.642]
[1742371899755,5.29806998,1940.9,1940.8,17.815]
[1742371900066,5.82787698,1940.9,1940.8,22.655]
[1742371900262,5.29806998,1940.9,1940.8,22.655]
[1742371900567,5.29806998,1940.9,1940.8,25.655]
[1742371901160,5.29806998,1940.9,1940.8,22.655]
[1742371901667,5.29806998,1940.9,1940.8,25.655]
[1742371902070,5.29806998,1940.9,1940.8,20.815]
[1742371902369,5.29806998,1940.9,1940.8,25.652]
[1742371903372,5.29806998,1940.9,1940.8,22.652]
[1742371903573,5.82787698,1940.9,1940.8,17.815]
[1742371904571,10.34046166,1940.9,1940.8,17.815]
[1742371905662,5.82787698,1940.9,1940.8,17.815]
[1742371906068,10.34046166,1940.9,1940.8,17.815]
[1742371906476,5.82787698,1940.9,1940.8,17.815]
[1742371906966,5.89229145,1940.9,1940.8,17.815]
[1742371907174,0.7592,1940.8,1940.5,4.838]
[1742371907466,4.51258468,1940.7,1940.5,4.838]
[1742371907672,4.51258468,1940.6,1940.5,4.838]
[1742371909186,5.27178468,1940.6,1940.5,4.838]
[1742371916962,0.7592,1940.6,1940.5,4.838]
[1742371917289,0.0283853,1940.9,1940.5,5.6218]
[1742371917466,5.26568468,1940.8,1940.5,5.6218]
[1742371918463,4.51258468,1940.7,1940.5,5.6218]
[1742371919316,4.51258468,1940.7,1940.6,3.0]
[1742371920275,4.51258468,1940.7,1940.3,4.01155098]
[1742371920474,0.7665,1940.6,1940.4,4.847]
[1742371920891,0.7665,1940.6,1940.3,4.01155098]
[1742371921093,4.51258468,1940.5,1940.4,7.848]
[1742371921405,4.51258468,1940.5,1940.4,25.665]
[1742371921613,4.51258468,1940.5,1940.4,25.664]
[1742371922176,5.86789315,1940.5,1940.4,17.817]
[1742371923093,0.7642,1940.4,1939.8,17.817]
[1742371923301,0.7642,1940.3,1939.9,4.857]
[1742371923508,4.51258468,1940.0,1939.9,4.857]
[1742371923690,4.51258468,1940.0,1939.9,7.857]
[1742371923890,5.27678468,1940.0,1939.9,7.856]
[1742371924308,4.51258468,1940.0,1939.9,7.856]
[1742371924481,5.26658468,1940.0,1939.9,4.856]
[1742371924681,5.26658468,1940.0,1939.9,7.856]
[1742371926941,5.34318468,1940.1,1939.9,7.856]
[1742371927117,5.34318468,1940.3,1939.9,8.6376]
[1742371928513,4.51258468,1940.2,1939.9,8.6376]
[1742371929694,5.34318468,1940.3,1939.9,8.6376]
[1742371931085,4.51258468,1940.4,1939.9,8.6376]
[1742371931285,4.51258468,1940.4,1940.0,3.0]
[1742371931485,4.51258468,1940.4,1940.0,3.86376]
[1742371931685,4.51258468,1940.3,1940.0,3.86376]
[1742371932401,4.51258468,1940.4,1940.0,3.86376]
[1742371933085,4.51258468,1940.3,1940.0,3.86376]
[1742371933286,4.51258468,1940.4,1940.0,3.86376]
[1742371933482,4.51258468,1940.3,1940.1,1.03439368]
[1742371934620,4.51258468,1940.2,1940.1,1.03439368]
[1742371934792,4.51258468,1940.2,1940.0,3.0]
[1742371935696,4.51258468,1940.2,1940.0,4.03955945]
[1742371936018,4.51258468,1940.1,1940.0,4.03955945]
[1742371936219,4.51258468,1940.2,1940.0,4.03955945]
[1742371937226,4.51258468,1940.3,1940.0,4.03955945]
[1742371938222,4.51258468,1940.2,1940.0,4.03955945]
[1742371938424,4.51258468,1940.1,1940.0,3.0]
[1742371938720,5.30438468,1940.2,1939.9,3.0]
[1742371939117,5.30438468,1940.2,1940.0,4.848]
[1742371939319,4.51258468,1940.1,1940.0,4.848]
[1742371941322,4.51258468,1940.1,1939.9,3.0]
[1742371941528,4.51258468,1940.1,1940.0,4.846]
[1742371944026,0.8048,1940.0,1939.9,3.0]
[1742371944321,5.31738468,1940.0,1939.9,4.847]
[1742371944527,5.31738468,1940.0,1939.9,7.847]
[1742371944927,5.31738468,1940.0,1939.8,17.817]
[1742371945112,5.33252785,1939.9,1939.8,17.817]
[1742371945314,5.86578063,1939.9,1939.8,17.817]
[1742371946529,5.26808468,1939.9,1939.8,17.817]
[1742371955414,4.51258468,1939.9,1939.8,17.817]
[1742371955803,4.51258468,1939.9,1939.7,4.847]
[1742371958336,0.06444351,1940.0,1939.7,4.847]
[1742371958541,4.51258468,1939.8,1939.7,4.847]
[1742371959537,5.34098468,1939.8,1939.7,4.847]
[1742371959743,5.93952963,1939.8,1939.7,4.847]
[1742371960349,5.87508315,1939.8,1939.7,4.847]
[1742371960546,5.34098468,1939.8,1939.7,4.847]
[1742371961840,5.34098468,1939.8,1939.5,17.825]
[1742371962067,5.30178468,1939.6,1939.5,17.825]
[1742371964653,4.51258468,1939.7,1939.5,17.825]
[1742371965016,4.57703582,1939.7,1939.5,17.825]
[1742371965650,4.51258468,1939.6,1939.5,17.825]
[1742371966352,4.51258468,1939.6,1939.5,22.654]
[1742371967420,4.51258468,1939.7,1939.5,25.654]
[1742371968029,4.51258468,1939.7,1939.5,26.4073]
[1742371971635,4.51258468,1939.7,1939.5,25.654]
[1742371979880,4.51258468,1939.7,1939.5,7.829]
[1742371981981,4.51258468,1939.8,1939.5,7.829]
[1742371982583,4.51258468,1939.9,1939.6,3.0]
[1742371982883,0.7647,1940.0,1939.6,3.0]
[1742371982884,4.51258468,1939.8,1939.6,3.0]
[1742371987293,4.51258468,1939.9,1939.6,3.0]
[1742371987890,5.29498468,1940.2,1939.7,0.8092]
[1742371988079,4.51258468,1940.3,1939.7,0.8092]
[1742371988280,4.51258468,1940.2,1939.7,0.8092]
[1742371989472,4.51258468,1940.2,1939.9,3.8143]
[1742371989674,4.51258468,1940.2,1940.1,3.0]
[1742371991164,4.51258468,1940.3,1940.1,3.0]
[1742371991369,0.7824,1940.4,1940.1,3.0]
[1742371991370,5.29498468,1940.4,1940.1,3.0]
[1742371991590,4.51258468,1940.2,1940.1,3.0]
[1742371995297,4.51258468,1940.3,1940.1,3.0]
[1742371998001,4.51258468,1940.2,1940.0,1.05553602]
[1742371998206,4.51258468,1940.1,1940.0,1.05553602]
[1742371998373,4.51258468,1940.1,1940.0,8.86253602]
[1742372000975,4.51258468,1940.1,1940.0,7.805]
[1742372001174,5.04575315,1940.1,1940.0,7.805]
[1742372001886,5.04575315,1940.1,1940.0,3.0]
[1742372003901,4.51258468,1940.1,1940.0,3.0]
[1742372004214,0.8191,1940.2,1940.1,3.0]
[1742372004421,4.51258468,1940.2,1939.9,7.807]
[1742372004580,4.51258468,1940.1,1939.9,7.807]
[1742372009558,4.51258468,1940.0,1939.9,7.807]
[1742372009681,4.51258468,1940.1,1939.9,7.807]
[1742372010614,4.51258468,1940.1,1940.0,3.0]
[1742372012818,4.51258468,1940.1,1939.9,3.0]
[1742372013020,0.06443689,1940.0,1939.9,7.808]
[1742372014551,4.57702157,1940.0,1939.9,7.808]
[1742372015233,5.85632373,1940.0,1939.9,3.0]
[1742372017231,5.79188684,1940.0,1939.9,3.0]
[1742372017429,5.79188684,1940.0,1939.8,17.827]
[1742372017638,5.79188684,1940.0,1939.8,20.827]
[1742372017639,4.51258468,1939.9,1939.8,20.827]
[1742372017803,5.39592712,1939.9,1939.8,17.827]
[1742372018003,6.36810608,1939.9,1939.8,17.827]
[1742372018226,6.36810608,1939.9,1939.7,4.805]
[1742372019026,5.33148468,1939.9,1939.7,4.805]
[1742372019229,4.51258468,1939.8,1939.7,7.805]
[1742372019403,0.753,1940.1,1939.7,8.6361]
[1742372019604,4.51258468,1940.0,1939.7,8.6361]
[1742372019809,4.51258468,1940.1,1939.7,8.6361]
[1742372020004,4.51258468,1940.0,1939.7,9.49971]
[1742372020324,4.51258468,1939.9,1939.7,9.49971]
[1742372023016,4.51258468,1939.9,1939.7,27.32471]
[1742372023935,4.51258468,1940.1,1939.8,3.0]
[1742372024943,0.753,1940.3,1939.8,3.0]
[1742372025150,4.51258468,1940.1,1939.8,3.9954775]
[1742372026750,4.51258468,1940.0,1939.8,3.9954775]
[1742372027845,4.51258468,1940.0,1939.9,7.801]
[1742372028028,5.34168468,1940.0,1939.9,7.801]
[1742372033751,4.51258468,1940.0,1939.9,7.801]
[1742372034252,4.51258468,1940.2,1939.9,7.801]
[1742372034451,0.06443606,1940.1,1939.9,7.801]
[1742372034643,4.51258468,1940.0,1939.9,7.801]
[1742372035235,2.70135405,1940.0,1939.9,7.801]
[1742372041659,2.70135405,1940.2,1940.0,3.7741]
[1742372041832,2.70135405,1940.1,1940.0,3.7741]
[1742372042662,2.70135405,1940.1,1940.0,3.0]
[1742372043932,2.70135405,1940.2,1940.0,3.0]
[1742372044168,2.70135405,1940.1,1940.0,3.0]
[1742372046866,2.70135405,1940.1,1940.0,4.02755648]
[1742372049157,2.70135405,1940.1,1940.0,3.0]
[1742372051366,3.45875405,1940.4,1940.0,3.769]
[1742372051367,2.70135405,1940.2,1940.0,3.769]
[1742372051534,2.70135405,1940.3,1940.0,3.769]
[1742372051736,2.70135405,1940.2,1940.0,3.769]
[1742372052464,2.70135405,1940.3,1940.0,3.769]
[1742372052671,2.70135405,1940.2,1940.0,3.769]
[1742372052873,2.70135405,1940.2,1940.1,0.3769]
[1742372053170,2.70135405,1940.3,1940.1,0.3769]
[1742372053479,2.70135405,1940.2,1940.1,0.3769]
[1742372054371,2.70135405,1940.3,1940.1,0.3769]
[1742372054600,2.70135405,1940.4,1940.2,0.7727]
[1742372054880,2.70135405,1940.6,1940.3,4.797]
[1742372055171,2.70135405,1940.5,1940.3,5.35397]
[1742372055341,0.7594,1940.8,1940.3,5.35397]
[1742372055342,2.70135405,1940.6,1940.4,3.0]
[1742372055543,2.70135405,1940.6,1940.5,0.8093]
[1742372055775,2.70135405,1940.6,1940.4,3.0]
[1742372055942,0.09279911,1940.9,1940.4,3.0]
[1742372055943,2.70135405,1940.5,1940.4,3.0]
[1742372056144,2.70135405,1940.5,1940.4,3.916327]
[1742372057267,2.70135405,1940.5,1940.4,4.796]
[1742372060098,2.70135405,1940.5,1940.4,5.81446397]
[1742372062696,2.70135405,1940.6,1940.4,5.81446397]
[1742372062985,2.70135405,1940.7,1940.5,3.0]
[1742372063207,2.70135405,1940.8,1940.5,3.0]
[1742372063410,2.70135405,1940.8,1940.6,0.3]
[1742372064706,0.0283853,1940.9,1940.6,0.3]
[1742372064707,0.0283853,1940.9,1940.7,0.8258]
[1742372064898,0.0283853,1940.9,1940.8,7.795]
[1742372068179,0.0283853,1940.9,1940.8,8.81355294]
[1742372069405,0.0283853,1940.9,1940.8,4.01855294]
[1742372069667,4.52564189,1940.9,1940.8,7.795]
[1742372072396,0.0283853,1940.9,1940.8,7.795]
[1742372074644,0.0283853,1940.9,1940.8,8.6027]
[1742372077693,0.0283853,1940.9,1940.8,14.74269]
[1742372077894,0.0283853,1940.9,1940.8,19.23994659]
[1742372078692,0.0283853,1940.9,1940.8,19.62985223]
[1742372079330,0.0283853,1940.9,1940.8,15.13259564]
[1742372085731,0.0283853,1940.9,1940.8,14.74269]
[1742372086639,0.0283853,1940.9,1940.8,9.94769]
[1742372086838,0.0283853,1940.9,1940.8,13.93299]
[1742372088241,0.0283853,1940.9,1940.8,7.793]
[1742372092447,0.0283853,1940.9,1940.8,25.605]
[1742372097352,0.0283853,1940.9,1940.8,29.13246906]
[1742372099854,0.0283853,1940.9,1940.8,35.27245906]
[1742372100856,0.0283853,1940.9,1940.8,32.57449]
[1742372101154,0.0283853,1940.9,1940.8,35.27245906]
[1742372102025,0.0283853,1940.9,1940.8,32.57449]
[1742372102355,0.0283853,1940.9,1940.8,35.27245906]
[1742372102557,0.0283853,1940.9,1940.8,32.57449]
[1742372102956,0.0283853,1940.9,1940.8,35.27245906]
[1742372105232,0.0283853,1940.9,1940.8,37.06929946]
[1742372108338,0.0283853,1940.9,1940.8,26.95199]
[1742372108545,0.0283853,1940.9,1940.8,25.605]
[1742372108758,0.0283853,1940.9,1940.8,30.09980946]
[1742372109360,0.0283853,1940.9,1940.8,30.93210946]
[1742372111169,0.0283853,1940.9,1940.8,30.09980946]
[1742372111538,0.0283853,1940.9,1940.8,36.23979946]
[1742372116482,0.0283853,1940.9,1940.8,31.74499]
[1742372118372,0.0283853,1940.9,1940.8,36.23979946]
[1742372119570,0.0283853,1940.9,1940.8,31.74499]
[1742372120472,0.0283853,1940.9,1940.8,36.23979946]
[1742372121977,0.0283853,1940.9,1940.8,31.74499]
[1742372125245,0.0283853,1940.9,1940.8,34.44241451]
[1742372131386,0.0283853,1940.9,1940.8,31.74499]
[1742372131876,0.8281853,1940.9,1940.8,31.74499]
[1742372137354,0.0283853,1940.9,1940.8,31.74499]
[1742372137688,0.0283853,1940.9,1940.8,34.44241451]
[1742372139248,0.0283853,1940.9,1940.8,31.74499]
[1742372140991,0.0283853,1940.9,1940.8,34.44241451]
[1742372142883,0.8054853,1940.9,1940.8,31.74499]
[1742372144586,0.8054853,1940.9,1940.8,25.605]
[1742372145850,3.50290981,1940.9,1940.8,20.812]
[1742372146078,3.50290981,1940.9,1940.8,25.605]
[1742372146468,0.8054853,1940.9,1940.8,25.605]
[1742372148189,0.8054853,1940.9,1940.8,20.812]
[1742372148364,0.8054853,1940.9,1940.8,25.605]
[1742372151695,3.85320079,1940.9,1940.8,25.605]
[1742372152226,0.8054853,1940.9,1940.8,25.605]
[1742372152594,3.50290981,1940.9,1940.8,25.605]
[1742372153365,0.8054853,1940.9,1940.8,25.605]
[1742372153607,3.50290981,1940.9,1940.8,25.605]
[1742372153970,0.8054853,1940.9,1940.8,25.605]
[1742372157793,3.50290981,1940.9,1940.8,25.605]
[1742372158699,0.8054853,1940.9,1940.8,25.605]
[1742372159884,0.0283853,1940.9,1940.8,25.605]
[1742372160195,0.0283853,1940.9,1940.8,28.30242451]
[1742372160381,0.0283853,1940.9,1940.8,29.10262451]
[1742372161300,0.0283853,1940.9,1940.8,35.63188089]
[1742372163101,0.0283853,1940.9,1940.8,37.42903751]
[1742372170477,0.0283853,1940.9,1940.8,47.91161864]
[1742372170672,0.786,1941.9,1941.1,0.7514]
[1742372170875,0.786,1941.9,1941.4,5.24598113]
[1742372171201,0.786,1941.9,1941.4,0.7514]
[1742372172087,0.786,1941.9,1941.5,3.0]
[1742372172283,0.786,1941.9,1941.7,3.0]
[1742372173921,0.786,1941.9,1941.8,1.04858317]
[1742372179882,0.01,1941.9,1941.8,14.6831543]
[1742372180082,0.8181,1942.3,1941.9,3.0]
[1742372180327,0.8181,1942.3,1942.1,3.0]
[1742372181819,0.8181,1942.3,1942.2,1.00734272]
[1742372184021,0.8178,1942.6,1942.2,1.00734272]
[1742372184541,0.8178,1942.6,1942.3,3.0]
[1742372184822,5.31238113,1942.6,1942.4,22.597]
[1742372184997,5.31238113,1942.6,1942.5,3.0]
[1742372185715,0.8178,1942.6,1942.5,3.0]
[1742372189013,5.31238113,1942.6,1942.5,3.0]
[1742372191130,5.31238113,1942.6,1942.5,4.05581954]
[1742372198629,5.02581924,1942.6,1942.5,4.05581954]
[1742372198833,5.79421924,1942.6,1942.5,7.789]
[1742372199215,3.9945933,1942.6,1942.5,7.789]
[1742372200104,3.9945933,1942.6,1942.5,4.789]
[1742372201204,5.79119409,1942.6,1942.5,4.789]
[1742372202631,0.7527,1942.5,1942.4,20.804]
[1742372202837,10.37771778,1942.5,1942.4,17.804]
[1742372203037,10.31336137,1942.5,1942.4,17.804]
[1742372203432,0.7839,1942.4,1941.3,6.13999]
[1742372203633,4.49155598,1941.8,1941.4,22.591]
[1742372203930,4.49155598,1942.1,1941.5,3.8129]
[1742372204333,4.49155598,1942.1,1941.5,9.95289]
[1742372204542,4.49155598,1942.2,1941.6,0.7501]
[1742372205837,5.27385598,1942.3,1941.8,0.7869]
[1742372206007,4.49155598,1942.3,1941.9,7.799]
[1742372206207,4.49155598,1942.2,1941.9,7.799]
[1742372206401,0.7797,1942.4,1941.9,7.799]
[1742372206402,4.49155598,1942.3,1941.9,7.799]
[1742372206839,4.49155598,1942.3,1942.0,0.8018]
[1742372208035,4.49155598,1942.5,1942.0,0.8018]
[1742372208211,4.49155598,1942.3,1942.0,0.8018]
[1742372208411,4.49155598,1942.3,1942.0,1.66188]
[1742372208951,4.49155598,1942.3,1942.2,3.0]
[1742372211348,4.49155598,1942.4,1942.2,3.0]
[1742372211531,4.49155598,1942.4,1942.3,4.798]
[1742372215825,4.49155598,1942.5,1942.4,3.0]
[1742372218457,4.49155598,1942.5,1942.4,20.801]
[1742372221958,5.26605598,1942.5,1942.4,20.801]
[1742372222165,5.71521158,1942.5,1942.4,25.597]
[1742372223245,5.71521158,1942.5,1942.4,7.796]
[1742372225646,0.8201,1942.4,1942.2,4.04481]
[1742372225830,4.49155598,1942.3,1942.2,3.0]
[1742372226035,4.49155598,1942.3,1942.2,7.794]
[1742372227164,4.49155598,1942.3,1942.2,3.0]
[1742372227371,5.02272158,1942.3,1942.2,4.793]
[1742372227867,5.02272158,1942.3,1942.2,7.793]
[1742372228068,4.49155598,1942.3,1942.2,7.793]
[1742372230341,5.31165598,1942.4,1942.2,7.793]
[1742372230544,4.49155598,1942.5,1942.2,8.5542]
[1742372231459,0.7975,1942.8,1942.2,8.5542]
[1742372231460,4.49155598,1942.6,1942.2,8.5542]
[1742372231945,0.7975,1942.8,1942.2,14.69419]
[1742372231946,4.49155598,1942.5,1942.2,14.69419]
[1742372232942,4.49155598,1942.6,1942.2,14.69419]
[1742372233339,4.49155598,1942.5,1942.2,14.69419]
[1742372233543,4.49155598,1942.4,1942.2,14.69419]
[1742372235149,4.49155598,1942.4,1942.2,9.90119]
[1742372235354,4.49155598,1942.4,1942.3,4.793]
[1742372235665,4.49155598,1942.5,1942.4,3.0]
[1742372237542,4.49155598,1942.6,1942.4,3.0]
[1742372238475,4.49155598,1942.7,1942.4,4.8590875]
[1742372238678,4.49155598,1942.7,1942.4,3.0]
[1742372240551,4.49155598,1942.6,1942.4,3.0]
[1742372244480,0.1147549,1942.9,1942.4,3.0]
[1742372244481,5.28155598,1942.5,1942.4,3.0]
[1742372244681,5.28155598,1942.5,1942.3,23.94099]
[1742372244893,0.5281556,1942.4,1942.3,23.94099]
[1742372245053,0.5281556,1942.4,1942.3,31.73199]
[1742372245390,0.79,1942.5,1942.4,3.0]
[1742372246091,5.28155598,1942.5,1942.4,3.0]
[1742372257617,5.28155598,1942.5,1942.3,17.801]
[1742372257800,9.86297191,1942.4,1942.3,17.801]
[1742372258007,9.79861196,1942.4,1942.3,17.801]
[1742372258314,10.77847316,1942.4,1942.3,17.801]
[1742372260085,11.16455037,1942.4,1942.3,17.801]
[1742372260287,6.28691718,1942.4,1942.0,4.79]
[1742372260619,0.8155,1942.4,1942.1,3.0]
[1742372260817,4.49155598,1942.3,1942.1,3.8229]
[1742372261198,4.49155598,1942.2,1942.1,3.8229]
[1742372261997,4.49155598,1942.2,1942.1,3.0]
[1742372262787,4.49155598,1942.2,1942.1,4.79]
[1742372264199,4.49155598,1942.2,1942.1,8.569]
[1742372266401,4.49155598,1942.2,1942.1,7.79]
[1742372266608,4.49155598,1942.3,1942.1,7.79]
[1742372267497,4.49155598,1942.2,1942.1,8.83790557]
[1742372268030,4.49155598,1942.3,1942.1,9.66720557]
[1742372268925,4.49155598,1942.2,1942.1,8.6193]
[1742372269512,4.49155598,1942.2,1942.1,7.79]
[1742372272141,4.49155598,1942.2,1942.1,3.0]
[1742372272385,4.49155598,1942.2,1942.1,7.79]
[1742372274148,0.8246,1942.3,1942.1,7.79]
[1742372274333,4.49155598,1942.2,1942.1,7.79]
[1742372280261,4.49155598,1942.2,1942.1,42.79]
[1742372280572,5.27145598,1942.2,1942.1,42.79]
[1742372280867,5.27145598,1942.2,1942.1,38.0]
[1742372284227,4.49155598,1942.2,1942.1,38.0]
[1742372289171,5.39155882,1942.2,1942.1,38.0]
[1742372292363,6.18585882,1942.2,1942.1,38.0]
[1742372294565,6.18585882,1942.2,1942.1,35.0]
[1742372294893,6.7977447,1942.2,1942.1,35.0]
[1742372296849,6.86211384,1942.2,1942.1,35.0]
[1742372297050,6.7977447,1942.2,1942.1,35.0]
[1742372299277,5.96531204,1942.2,1942.1,35.0]
[1742372299575,5.90094064,1942.2,1942.1,35.0]
[1742372299876,5.96531203,1942.2,1942.1,35.0]
[1742372300068,5.17771203,1942.2,1941.6,7.791]
[1742372300373,4.49475476,1941.7,1941.6,7.791]
[1742372301072,4.49475476,1941.7,1941.6,42.791]
[1742372309587,4.49475476,1941.7,1941.6,38.0]
[1742372311648,5.37383665,1941.7,1941.6,35.0]
[1742372311851,9.86859141,1941.7,1941.6,35.0]
[1742372312064,6.2963139,1941.7,1941.6,35.0]
[1742372312987,10.79106866,1941.7,1941.6,35.0]
[1742372313360,9.97636866,1941.7,1941.2,4.791]
[1742372313558,5.29895476,1941.3,1941.2,4.791]
[1742372314460,5.29895476,1941.3,1941.2,39.791]
[1742372316391,5.82885024,1941.3,1941.2,39.791]
[1742372317413,5.82885024,1941.3,1941.2,35.0]
[1742372323200,4.03263198,1941.3,1941.2,35.0]
[1742372333101,3.22843198,1941.3,1941.2,35.0]
[1742372333500,3.98273198,1941.3,1941.2,35.0]
[1742372335706,6.68126848,1941.3,1941.2,35.0]
[1742372335908,5.99136805,1941.3,1940.7,8.85057809]
[1742372336220,2.6985365,1940.8,1940.7,1.05757809]
[1742372336524,2.6985365,1940.8,1940.7,4.05757809]
[1742372336694,2.6985365,1940.8,1940.7,1.05757809]
[1742372336893,2.6985365,1940.8,1940.7,36.05757809]
[1742372338313,2.6985365,1940.8,1940.7,35.0]
[1742372339116,4.49947478,1940.8,1940.7,35.0]
[1742372339316,4.95586341,1940.8,1940.7,35.0]
[1742372339519,4.49947478,1940.8,1940.7,35.0]
[1742372346039,4.49947478,1940.9,1940.7,35.7607]
[1742372346238,0.7678,1941.2,1940.7,35.7607]
[1742372346239,4.49947478,1940.8,1940.7,0.7607]
[1742372346706,4.49947478,1940.8,1940.7,35.7607]
[1742372346905,4.49947478,1940.8,1940.7,38.7607]
[1742372348111,4.49947478,1940.8,1940.7,38.0]
[1742372348429,5.02644226,1940.8,1940.7,38.0]
[1742372349945,4.49947478,1940.8,1940.7,38.0]
[1742372354244,4.49947478,1940.8,1940.7,35.0]
[1742372359267,2.69962503,1940.8,1940.7,35.0]
[1742372376457,2.69962503,1940.8,1940.5,1.05529013]
[1742372376657,2.69962503,1940.6,1940.5,1.05529013]
[1742372377048,2.69962503,1940.6,1940.5,39.05529013]
[1742372377980,2.69962503,1940.6,1940.5,39.53918869]
[1742372379262,2.69962503,1940.6,1940.5,39.05529013]
[1742372382588,2.96958753,1940.6,1940.5,36.05529013]
[1742372384359,2.69962503,1940.6,1940.5,36.05529013]
[1742372386796,2.69962503,1940.6,1940.5,35.0]
[1742372388679,2.76404424,1940.6,1940.5,35.0]
[1742372390173,2.69962503,1940.6,1940.5,35.0]
[1742372394799,0.7887,1940.9,1940.5,35.0]
[1742372395009,2.69962503,1940.6,1940.5,35.0]
[1742372405019,2.69962503,1940.7,1940.5,35.7653]
[1742372406232,2.69962503,1940.6,1940.5,35.7653]
[1742372406934,2.69962503,1940.6,1940.5,36.24908401]
[1742372408932,2.69962503,1940.6,1940.5,35.7653]
[1742372409234,2.69962503,1940.6,1940.5,35.0]
[1742372414145,2.69962503,1940.6,1940.5,36.01358016]
[1742372419155,0.7855,1941.0,1940.5,39.79348016]
[1742372419325,2.69962503,1940.9,1940.7,0.7799]
[1742372419529,2.69962503,1941.0,1940.7,0.7799]
[1742372419829,2.69962503,1941.0,1940.9,35.0]
[1742372420044,2.69962503,1941.0,1940.9,35.8021]
[1742372424761,0.7883,1941.5,1941.0,3.0]
[1742372424960,2.69962503,1941.2,1941.1,4.793]
[1742372425659,2.69962503,1941.2,1941.1,39.793]
[1742372432761,2.69962503,1941.2,1941.1,35.0]
[1742372432969,3.48062503,1941.2,1941.1,35.0]
[1742372433278,6.52831256,1941.2,1941.1,35.0]
[1742372436796,0.7947,1941.1,1940.7,17.819]
[1742372436998,3.49432503,1940.8,1940.7,17.819]
[1742372437300,3.49432503,1940.8,1940.6,3.0]
[1742372437501,2.69962503,1940.7,1940.6,3.0]
[1742372437790,2.69962503,1940.7,1940.6,38.0]
[1742372439090,2.69962503,1940.7,1940.6,35.0]
[1742372448398,2.69962503,1940.7,1940.6,35.7653]
[1742372448773,2.69962503,1940.7,1940.6,35.0]
[1742372452200,2.76403881,1940.7,1940.5,3.0]
[1742372452399,2.69962503,1940.6,1940.5,3.0]
[1742372452802,2.69962503,1940.6,1940.5,38.0]
[1742372452997,2.69962503,1940.6,1940.5,35.0]
[1742372453197,2.96958753,1940.6,1940.5,35.0]
[1742372453497,3.73088753,1940.6,1940.5,35.0]